[Event "Titled Tuesday Blitz August 08 Late 2023"]
[White "Fedoseev, Vladimir"]
[Black "Gadimbayli, Abdulla"]
[WhiteFideId "24130737"]
[BlackFideId "13404938"]
[WhiteElo "3088"]
[BlackElo "2851"]
[Result "1-0"]
[Round "9"]
[TimeControl "180+1"]
[Date "2023.08.08"]
[WhiteClock "0:01:27"]
[BlackClock "0:00:29"]
[Board "6"]

1. Nf3 {[%clk 0:03:00]}  d5 {[%clk 0:02:55]} 2. g3 {[%clk 0:03:01]}  Nc6 {[%clk 0:02:55]} 3. d4 {[%clk 0:02:57]}  Bg4 {[%clk 0:02:55]} 4. Bg2 {[%clk 0:02:55]}  Qd7 {[%clk 0:02:54]} 5. c4 {[%clk 0:02:55]}  dxc4 {[%clk 0:02:53]} 6. d5 {[%clk 0:02:51]}  O-O-O {[%clk 0:02:48]} 7. Nc3 {[%clk 0:02:50]}  Bxf3 {[%clk 0:02:24]} 8. Bxf3 {[%clk 0:02:50]}  Ne5 {[%clk 0:02:25]} 9. Bg2 {[%clk 0:02:49]}  e6 {[%clk 0:02:21]} 10. Qd4 {[%clk 0:02:32]}  Nc6 {[%clk 0:02:14]} 11. Qxc4 {[%clk 0:02:29]}  exd5 {[%clk 0:02:15]} 12. Nxd5 {[%clk 0:02:13]}  Bb4+ {[%clk 0:02:03]} 13. Kf1 {[%clk 0:02:05]}  Nf6 {[%clk 0:02:02]} 14. e4 {[%clk 0:01:51]}  Rhe8 {[%clk 0:01:32]} 15. Bg5 {[%clk 0:01:47]}  Be7 {[%clk 0:01:14]} 16. h4 {[%clk 0:01:46]}  Nxd5 {[%clk 0:01:11]} 17. Bh3 {[%clk 0:01:42]}  Ne5 {[%clk 0:00:45]} 18. Bxd7+ {[%clk 0:01:36]}  Rxd7 {[%clk 0:00:46]} 19. Qb3 {[%clk 0:01:36]}  Nb6 {[%clk 0:00:43]} 20. Rd1 {[%clk 0:01:33]}  Bd6 {[%clk 0:00:39]} 21. Kg2 {[%clk 0:01:32]}  f6 {[%clk 0:00:38]} 22. Bf4 {[%clk 0:01:31]}  Rde7 {[%clk 0:00:39]} 23. Rhe1 {[%clk 0:01:31]}  Kb8 {[%clk 0:00:37]} 24. a4 {[%clk 0:01:29]}  a5 {[%clk 0:00:29]} 25. Rxd6 {[%clk 0:01:27]} 1-0


[Site "https://www.chess.com"]

[Event "Titled Tuesday Blitz August 08 Late 2023"]
[White "Ibarra Jerez, Jose Carlos"]
[Black "Aronian, Levon"]
[WhiteFideId "2226332"]
[BlackFideId "13300474"]
[WhiteElo "2859"]
[BlackElo "3034"]
[Result "0-1"]
[Round "9"]
[TimeControl "180+1"]
[Date "2023.08.08"]
[WhiteClock "0:00:04"]
[BlackClock "0:00:19"]
[Board "7"]

1. e4 {[%clk 0:03:00]}  c5 {[%clk 0:02:59]} 2. Nf3 {[%clk 0:02:56]}  e6 {[%clk 0:03:00]} 3. d4 {[%clk 0:02:57]}  cxd4 {[%clk 0:03:00]} 4. Nxd4 {[%clk 0:02:58]}  Nc6 {[%clk 0:03:01]} 5. Nc3 {[%clk 0:02:57]}  Qc7 {[%clk 0:03:01]} 6. Be3 {[%clk 0:02:53]}  a6 {[%clk 0:03:01]} 7. g4 {[%clk 0:02:53]}  h6 {[%clk 0:02:57]} 8. Qd2 {[%clk 0:02:41]}  Ne5 {[%clk 0:02:47]} 9. Be2 {[%clk 0:02:28]}  Nf6 {[%clk 0:02:37]} 10. h3 {[%clk 0:02:19]}  Bb4 {[%clk 0:02:35]} 11. f3 {[%clk 0:02:11]}  d5 {[%clk 0:02:35]} 12. O-O-O {[%clk 0:01:54]}  dxe4 {[%clk 0:02:31]} 13. f4 {[%clk 0:01:53]}  Nd5 {[%clk 0:02:28]} 14. Nb3 {[%clk 0:01:31]}  Nxc3 {[%clk 0:01:57]} 15. bxc3 {[%clk 0:01:28]}  Bxc3 {[%clk 0:01:57]} 16. Qd6 {[%clk 0:01:24]}  Qxd6 {[%clk 0:01:56]} 17. Rxd6 {[%clk 0:01:24]}  Nc6 {[%clk 0:01:55]} 18. Nc5 {[%clk 0:01:05]}  Bb4 {[%clk 0:01:33]} 19. Kb2 {[%clk 0:01:05]}  O-O {[%clk 0:01:32]} 20. a3 {[%clk 0:01:01]}  Ba5 {[%clk 0:01:23]} 21. Nxe4 {[%clk 0:00:59]}  Bc7 {[%clk 0:01:23]} 22. Rd2 {[%clk 0:00:58]}  Rd8 {[%clk 0:01:22]} 23. Rhd1 {[%clk 0:00:53]}  Rxd2 {[%clk 0:01:11]} 24. Rxd2 {[%clk 0:00:54]}  b5 {[%clk 0:01:06]} 25. Nd6 {[%clk 0:00:48]}  Na5 {[%clk 0:01:01]} 26. Bf3 {[%clk 0:00:45]}  Bxd6 {[%clk 0:00:58]} 27. Bxa8 {[%clk 0:00:38]}  Nc4+ {[%clk 0:00:58]} 28. Kc3 {[%clk 0:00:38]}  Nxd2 {[%clk 0:00:54]} 29. Bxd2 {[%clk 0:00:36]}  Bxa3 {[%clk 0:00:52]} 30. Kd4 {[%clk 0:00:33]}  Bd6 {[%clk 0:00:50]} 31. Be4 {[%clk 0:00:28]}  f5 {[%clk 0:00:48]} 32. gxf5 {[%clk 0:00:27]}  exf5 {[%clk 0:00:48]} 33. Kd5 {[%clk 0:00:27]}  fxe4 {[%clk 0:00:45]} 34. Kxd6 {[%clk 0:00:27]}  Bxh3 {[%clk 0:00:45]} 35. Ke5 {[%clk 0:00:18]}  Bg2 {[%clk 0:00:45]} 36. f5 {[%clk 0:00:18]}  h5 {[%clk 0:00:46]} 37. Be1 {[%clk 0:00:18]}  a5 {[%clk 0:00:43]} 38. Bxa5 {[%clk 0:00:16]}  h4 {[%clk 0:00:38]} 39. Kf4 {[%clk 0:00:17]}  h3 {[%clk 0:00:36]} 40. Kg3 {[%clk 0:00:17]}  e3 {[%clk 0:00:36]} 41. Bc3 {[%clk 0:00:15]}  e2 {[%clk 0:00:33]} 42. Kf2 {[%clk 0:00:14]}  Be4 {[%clk 0:00:30]} 43. Be5 {[%clk 0:00:11]}  Bxc2 {[%clk 0:00:26]} 44. Kxe2 {[%clk 0:00:10]}  b4 {[%clk 0:00:26]} 45. Kf3 {[%clk 0:00:05]}  b3 {[%clk 0:00:22]} 46. f6 {[%clk 0:00:04]}  gxf6 {[%clk 0:00:14]} 47. Bxf6 {[%clk 0:00:05]}  Kf7 {[%clk 0:00:15]} 48. Bb2 {[%clk 0:00:05]}  Ke6 {[%clk 0:00:15]} 49. Kg3 {[%clk 0:00:03]}  Bf5 {[%clk 0:00:15]} 50. Kf3 {[%clk 0:00:04]}  Kd5 {[%clk 0:00:15]} 51. Bc1 {[%clk 0:00:03]}  Kc4 {[%clk 0:00:15]} 52. Bb2 {[%clk 0:00:01]}  Kd3 {[%clk 0:00:15]} 53. Be5 {[%clk 0:00:01]}  Kc2 {[%clk 0:00:15]} 54. Kg3 {[%clk 0:00:02]}  b2 {[%clk 0:00:16]} 55. Bxb2 {[%clk 0:00:02]}  Kxb2 {[%clk 0:00:16]} 56. Kf3 {[%clk 0:00:02]}  Kc2 {[%clk 0:00:17]} 57. Kf2 {[%clk 0:00:03]}  Kd2 {[%clk 0:00:17]} 58. Kg3 {[%clk 0:00:02]}  Ke3 {[%clk 0:00:17]} 59. Kh2 {[%clk 0:00:03]}  Kf2 {[%clk 0:00:18]} 60. Kh1 {[%clk 0:00:03]}  Kg3 {[%clk 0:00:18]} 61. Kg1 {[%clk 0:00:03]}  h2+ {[%clk 0:00:19]} 62. Kh1 {[%clk 0:00:04]}  Be4# {[%clk 0:00:19]} 0-1


[Site "https://www.chess.com"]

[Event "Titled Tuesday Blitz August 08 Late 2023"]
[White "He, Anthony"]
[Black "Talibov, Shiroghlan"]
[WhiteFideId "2088215"]
[BlackFideId "13429078"]
[WhiteElo "2953"]
[BlackElo "2835"]
[Result "1-0"]
[Round "9"]
[TimeControl "180+1"]
[Date "2023.08.08"]
[WhiteClock "0:00:11"]
[BlackClock "0:00:00"]
[Board "11"]

1. e4 {[%clk 0:03:00]}  e5 {[%clk 0:02:59]} 2. Nf3 {[%clk 0:03:01]}  Nc6 {[%clk 0:02:58]} 3. Bc4 {[%clk 0:03:00]}  Nf6 {[%clk 0:02:58]} 4. d3 {[%clk 0:03:00]}  Bc5 {[%clk 0:02:58]} 5. O-O {[%clk 0:03:01]}  d6 {[%clk 0:02:57]} 6. c3 {[%clk 0:03:01]}  a5 {[%clk 0:02:54]} 7. Nbd2 {[%clk 0:02:59]}  Ba7 {[%clk 0:02:53]} 8. Re1 {[%clk 0:02:58]}  h6 {[%clk 0:02:53]} 9. Nf1 {[%clk 0:02:58]}  O-O {[%clk 0:02:52]} 10. Ng3 {[%clk 0:02:58]}  Ne7 {[%clk 0:02:52]} 11. h3 {[%clk 0:02:55]}  c6 {[%clk 0:02:48]} 12. Bb3 {[%clk 0:02:54]}  Ng6 {[%clk 0:02:47]} 13. d4 {[%clk 0:02:55]}  Re8 {[%clk 0:02:41]} 14. Bc2 {[%clk 0:02:52]}  Qc7 {[%clk 0:02:28]} 15. Be3 {[%clk 0:02:52]}  Nf4 {[%clk 0:02:26]} 16. Qd2 {[%clk 0:02:50]}  g5 {[%clk 0:02:24]} 17. Rad1 {[%clk 0:02:47]}  Be6 {[%clk 0:02:22]} 18. h4 {[%clk 0:02:41]}  Nh7 {[%clk 0:01:58]} 19. hxg5 {[%clk 0:02:32]}  hxg5 {[%clk 0:01:59]} 20. Nf5 {[%clk 0:02:30]}  f6 {[%clk 0:01:51]} 21. g3 {[%clk 0:02:26]}  Ng6 {[%clk 0:01:42]} 22. Kg2 {[%clk 0:02:26]}  Bxf5 {[%clk 0:01:25]} 23. exf5 {[%clk 0:02:27]}  Ne7 {[%clk 0:01:25]} 24. dxe5 {[%clk 0:02:09]}  Bxe3 {[%clk 0:01:14]} 25. Qxd6 {[%clk 0:02:05]}  Qxd6 {[%clk 0:01:07]} 26. exd6 {[%clk 0:02:04]}  Nd5 {[%clk 0:01:08]} 27. d7 {[%clk 0:01:55]}  Re7 {[%clk 0:01:04]} 28. fxe3 {[%clk 0:01:53]}  Rxd7 {[%clk 0:00:59]} 29. e4 {[%clk 0:01:52]}  Nb6 {[%clk 0:00:57]} 30. Bb3+ {[%clk 0:01:52]}  Kg7 {[%clk 0:00:54]} 31. Be6 {[%clk 0:01:48]}  Rxd1 {[%clk 0:00:50]} 32. Rxd1 {[%clk 0:01:49]}  g4 {[%clk 0:00:50]} 33. Nh2 {[%clk 0:01:43]}  Ng5 {[%clk 0:00:50]} 34. Nxg4 {[%clk 0:01:44]}  Nxe4 {[%clk 0:00:41]} 35. Rd4 {[%clk 0:01:36]}  Ng5 {[%clk 0:00:36]} 36. Bb3 {[%clk 0:01:18]}  Re8 {[%clk 0:00:31]} 37. Kf1 {[%clk 0:01:16]}  Ne4 {[%clk 0:00:19]} 38. Kg2 {[%clk 0:01:09]}  Ng5 {[%clk 0:00:19]} 39. Rd2 {[%clk 0:01:08]}  Re4 {[%clk 0:00:14]} 40. Nf2 {[%clk 0:01:07]}  Re5 {[%clk 0:00:11]} 41. g4 {[%clk 0:01:04]}  Re3 {[%clk 0:00:09]} 42. Rd8 {[%clk 0:00:56]}  a4 {[%clk 0:00:09]} 43. Rb8 {[%clk 0:00:36]}  Re7 {[%clk 0:00:09]} 44. Be6 {[%clk 0:00:28]}  Nxe6 {[%clk 0:00:09]} 45. fxe6 {[%clk 0:00:29]}  Nc4 {[%clk 0:00:08]} 46. Ne4 {[%clk 0:00:23]}  Nxb2 {[%clk 0:00:06]} 47. Ng3 {[%clk 0:00:23]}  Rxe6 {[%clk 0:00:02]} 48. Rxb7+ {[%clk 0:00:22]}  Kg6 {[%clk 0:00:02]} 49. Rxb2 {[%clk 0:00:23]}  Re3 {[%clk 0:00:03]} 50. Rc2 {[%clk 0:00:23]}  Kg5 {[%clk 0:00:02]} 51. Kf2 {[%clk 0:00:23]}  Rd3 {[%clk 0:00:02]} 52. Ne4+ {[%clk 0:00:19]}  Kxg4 {[%clk 0:00:00]} 53. Ke2 {[%clk 0:00:11]} 1-0


[Site "https://www.chess.com"]

[Event "Titled Tuesday Blitz August 08 Late 2023"]
[White "Terry, Renato"]
[Black "Ashraf, Artin"]
[WhiteFideId "3803457"]
[BlackFideId "22514805"]
[WhiteElo "2916"]
[BlackElo "2833"]
[Result "1-0"]
[Round "9"]
[TimeControl "180+1"]
[Date "2023.08.08"]
[WhiteClock "0:01:07"]
[BlackClock "0:00:00"]
[Board "12"]

1. d4 {[%clk 0:03:00]}  a6 {[%clk 0:02:57]} 2. c4 {[%clk 0:02:58]}  b5 {[%clk 0:02:52]} 3. e4 {[%clk 0:02:58]}  bxc4 {[%clk 0:02:45]} 4. Bxc4 {[%clk 0:02:58]}  e6 {[%clk 0:02:38]} 5. Nc3 {[%clk 0:02:58]}  Nf6 {[%clk 0:02:35]} 6. e5 {[%clk 0:02:57]}  d5 {[%clk 0:02:35]} 7. exf6 {[%clk 0:02:40]}  dxc4 {[%clk 0:02:34]} 8. Qa4+ {[%clk 0:02:40]}  Nd7 {[%clk 0:02:30]} 9. fxg7 {[%clk 0:02:39]}  Bxg7 {[%clk 0:02:19]} 10. Nge2 {[%clk 0:02:40]}  Bb7 {[%clk 0:01:53]} 11. Qxc4 {[%clk 0:02:36]}  O-O {[%clk 0:01:17]} 12. O-O {[%clk 0:02:30]}  Nb6 {[%clk 0:01:10]} 13. Qc5 {[%clk 0:02:30]}  Nd5 {[%clk 0:01:05]} 14. Bd2 {[%clk 0:02:17]}  Kh8 {[%clk 0:00:48]} 15. Nxd5 {[%clk 0:02:11]}  Bxd5 {[%clk 0:00:48]} 16. Nf4 {[%clk 0:01:57]}  Bb7 {[%clk 0:00:32]} 17. Bc3 {[%clk 0:01:57]}  Qh4 {[%clk 0:00:12]} 18. Qxc7 {[%clk 0:01:24]}  Be4 {[%clk 0:00:06]} 19. f3 {[%clk 0:01:24]}  Bf5 {[%clk 0:00:04]} 20. d5 {[%clk 0:01:15]}  Rac8 {[%clk 0:00:02]} 21. Bxg7+ {[%clk 0:01:15]}  Kxg7 {[%clk 0:00:03]} 22. Qe5+ {[%clk 0:01:13]}  f6 {[%clk 0:00:03]} 23. Qd4 {[%clk 0:01:12]}  Kh8 {[%clk 0:00:01]} 24. dxe6 {[%clk 0:01:12]}  Rc2 {[%clk 0:00:00]} 25. Ng6+ {[%clk 0:01:07]} 1-0


[Site "https://www.chess.com"]

[Event "Titled Tuesday Blitz August 08 Late 2023"]
[White "Zhigalko, Sergei"]
[Black "Haydon, David L"]
[WhiteFideId "13502956"]
[BlackFideId "415405"]
[WhiteElo "2889"]
[BlackElo "2785"]
[Result "1-0"]
[Round "9"]
[TimeControl "180+1"]
[Date "2023.08.08"]
[WhiteClock "0:00:02"]
[BlackClock "0:00:06"]
[Board "15"]

1. e4 {[%clk 0:03:00]}  c6 {[%clk 0:02:53]} 2. d4 {[%clk 0:03:01]}  d5 {[%clk 0:02:53]} 3. e5 {[%clk 0:03:01]}  c5 {[%clk 0:02:52]} 4. Nf3 {[%clk 0:03:01]}  cxd4 {[%clk 0:02:52]} 5. Qxd4 {[%clk 0:03:02]}  Nc6 {[%clk 0:02:51]} 6. Qf4 {[%clk 0:03:02]}  e6 {[%clk 0:02:51]} 7. Bd3 {[%clk 0:03:02]}  h6 {[%clk 0:02:48]} 8. O-O {[%clk 0:03:02]}  Nge7 {[%clk 0:02:44]} 9. Re1 {[%clk 0:02:58]}  g5 {[%clk 0:02:30]} 10. Qg4 {[%clk 0:02:48]}  Nf5 {[%clk 0:02:24]} 11. Nc3 {[%clk 0:02:39]}  Be7 {[%clk 0:02:16]} 12. Qa4 {[%clk 0:02:02]}  Rg8 {[%clk 0:01:58]} 13. Nb5 {[%clk 0:01:36]}  g4 {[%clk 0:01:52]} 14. Nfd4 {[%clk 0:01:32]}  Nfxd4 {[%clk 0:01:52]} 15. Nxd4 {[%clk 0:01:32]}  Bd7 {[%clk 0:01:51]} 16. Nxc6 {[%clk 0:01:19]}  Bxc6 {[%clk 0:01:48]} 17. Qf4 {[%clk 0:01:11]}  h5 {[%clk 0:01:21]} 18. Be3 {[%clk 0:01:09]}  Bg5 {[%clk 0:01:18]} 19. Qd4 {[%clk 0:01:10]}  Bxe3 {[%clk 0:01:19]} 20. fxe3 {[%clk 0:01:08]}  Qb6 {[%clk 0:01:09]} 21. Rf1 {[%clk 0:01:07]}  Qxd4 {[%clk 0:01:07]} 22. exd4 {[%clk 0:01:08]}  Ke7 {[%clk 0:01:00]} 23. Rf6 {[%clk 0:01:07]}  Raf8 {[%clk 0:00:59]} 24. a4 {[%clk 0:00:57]}  a5 {[%clk 0:00:57]} 25. b3 {[%clk 0:00:57]}  Rh8 {[%clk 0:00:56]} 26. Raf1 {[%clk 0:00:56]}  Be8 {[%clk 0:00:52]} 27. Kf2 {[%clk 0:00:52]}  Rfg8 {[%clk 0:00:51]} 28. Ke3 {[%clk 0:00:52]}  h4 {[%clk 0:00:51]} 29. R1f4 {[%clk 0:00:48]}  Rg7 {[%clk 0:00:49]} 30. Be2 {[%clk 0:00:45]}  g3 {[%clk 0:00:45]} 31. h3 {[%clk 0:00:45]}  Rgh7 {[%clk 0:00:40]} 32. Rg4 {[%clk 0:00:40]}  Kf8 {[%clk 0:00:38]} 33. Kf4 {[%clk 0:00:16]}  Ke7 {[%clk 0:00:37]} 34. Bd3 {[%clk 0:00:13]}  Rh5 {[%clk 0:00:35]} 35. Rg5 {[%clk 0:00:10]}  R5h6 {[%clk 0:00:33]} 36. Rxh6 {[%clk 0:00:06]}  Rxh6 {[%clk 0:00:34]} 37. Rg7 {[%clk 0:00:06]}  Kf8 {[%clk 0:00:33]} 38. Rg4 {[%clk 0:00:05]}  f6 {[%clk 0:00:32]} 39. exf6 {[%clk 0:00:02]}  Rxf6+ {[%clk 0:00:33]} 40. Kg5 {[%clk 0:00:01]}  Ke7 {[%clk 0:00:15]} 41. Kxh4 {[%clk 0:00:01]}  Bc6 {[%clk 0:00:11]} 42. Kxg3 {[%clk 0:00:02]}  Kd6 {[%clk 0:00:06]} 43. Rg5 {[%clk 0:00:02]} 1-0


[Site "https://www.chess.com"]

[Event "Titled Tuesday Blitz August 08 Late 2023"]
[White "Bilan, Danila"]
[Black "Bauman_Guy"]
[WhiteFideId "24161918"]
[WhiteElo "2605"]
[BlackElo "2798"]
[Result "0-1"]
[Round "9"]
[TimeControl "180+1"]
[Date "2023.08.08"]
[WhiteClock "0:00:03"]
[BlackClock "0:01:01"]
[Board "20"]

1. d4 {[%clk 0:03:00]}  Nf6 {[%clk 0:02:58]} 2. Nf3 {[%clk 0:03:01]}  b6 {[%clk 0:02:58]} 3. g3 {[%clk 0:03:00]}  Bb7 {[%clk 0:02:58]} 4. Bg2 {[%clk 0:03:01]}  g6 {[%clk 0:02:59]} 5. O-O {[%clk 0:03:01]}  Bg7 {[%clk 0:02:58]} 6. c4 {[%clk 0:03:02]}  O-O {[%clk 0:02:58]} 7. Nc3 {[%clk 0:03:01]}  e6 {[%clk 0:02:58]} 8. Qc2 {[%clk 0:02:56]}  a5 {[%clk 0:02:57]} 9. b3 {[%clk 0:02:55]}  d6 {[%clk 0:02:56]} 10. Bb2 {[%clk 0:02:52]}  Nbd7 {[%clk 0:02:56]} 11. Rad1 {[%clk 0:02:52]}  Re8 {[%clk 0:02:55]} 12. Rfe1 {[%clk 0:02:52]}  e5 {[%clk 0:02:51]} 13. dxe5 {[%clk 0:02:44]}  dxe5 {[%clk 0:02:50]} 14. Nxe5 {[%clk 0:02:07]}  Bxg2 {[%clk 0:02:44]} 15. Nxd7 {[%clk 0:02:04]}  Nxd7 {[%clk 0:02:40]} 16. Kxg2 {[%clk 0:02:03]}  c6 {[%clk 0:02:41]} 17. Rd6 {[%clk 0:01:28]}  Qc7 {[%clk 0:02:36]} 18. Red1 {[%clk 0:01:29]}  Nc5 {[%clk 0:02:34]} 19. Na4 {[%clk 0:01:15]}  Nxa4 {[%clk 0:02:27]} 20. Bxg7 {[%clk 0:01:14]}  Kxg7 {[%clk 0:02:26]} 21. bxa4 {[%clk 0:01:14]}  Kg8 {[%clk 0:02:05]} 22. e3 {[%clk 0:00:59]}  Rad8 {[%clk 0:02:00]} 23. Qd3 {[%clk 0:00:47]}  Rxd6 {[%clk 0:01:53]} 24. Qxd6 {[%clk 0:00:48]}  Qc8 {[%clk 0:01:51]} 25. Qd7 {[%clk 0:00:41]}  Qa8 {[%clk 0:01:51]} 26. Rd6 {[%clk 0:00:32]}  c5+ {[%clk 0:01:35]} 27. Kg1 {[%clk 0:00:23]}  Rb8 {[%clk 0:01:17]} 28. h4 {[%clk 0:00:19]}  Qe4 {[%clk 0:01:09]} 29. Rf6 {[%clk 0:00:11]}  Qxc4 {[%clk 0:01:07]} 30. h5 {[%clk 0:00:09]}  Qxa2 {[%clk 0:01:03]} 31. h6 {[%clk 0:00:08]}  Qa1+ {[%clk 0:01:03]} 32. Kg2 {[%clk 0:00:05]}  Qxf6 {[%clk 0:01:02]} 33. g4 {[%clk 0:00:06]}  Rd8 {[%clk 0:01:02]} 34. Qc6 {[%clk 0:00:03]}  Qxc6+ {[%clk 0:01:01]} 0-1


[Site "https://www.chess.com"]

[Event "Titled Tuesday Blitz August 08 Late 2023"]
[White "GaiozNigalidze"]
[Black "Pantev, Veselin"]
[BlackFideId "2901390"]
[WhiteElo "2462"]
[BlackElo "2627"]
[Result "1/2-1/2"]
[Round "9"]
[TimeControl "180+1"]
[Date "2023.08.08"]
[WhiteClock "0:00:21"]
[BlackClock "0:00:51"]
[Board "25"]

1. c4 {[%clk 0:03:00]}  Nf6 {[%clk 0:02:59]} 2. Nf3 {[%clk 0:03:01]}  e6 {[%clk 0:02:59]} 3. g3 {[%clk 0:03:01]}  b6 {[%clk 0:02:58]} 4. Bg2 {[%clk 0:03:02]}  Bb7 {[%clk 0:02:58]} 5. O-O {[%clk 0:03:02]}  Be7 {[%clk 0:02:59]} 6. b3 {[%clk 0:03:02]}  O-O {[%clk 0:02:59]} 7. Bb2 {[%clk 0:03:03]}  c5 {[%clk 0:02:59]} 8. d3 {[%clk 0:03:03]}  d6 {[%clk 0:02:58]} 9. Nbd2 {[%clk 0:03:03]}  Nbd7 {[%clk 0:02:58]} 10. a3 {[%clk 0:03:03]}  Qc7 {[%clk 0:02:58]} 11. b4 {[%clk 0:03:02]}  Rab8 {[%clk 0:02:55]} 12. b5 {[%clk 0:03:03]}  a5 {[%clk 0:02:54]} 13. bxa6 {[%clk 0:02:58]}  Bxa6 {[%clk 0:02:54]} 14. a4 {[%clk 0:02:59]}  Bb7 {[%clk 0:02:53]} 15. Nb1 {[%clk 0:02:59]}  d5 {[%clk 0:02:43]} 16. Nc3 {[%clk 0:02:58]}  Bc6 {[%clk 0:02:43]} 17. Nb5 {[%clk 0:02:56]}  Qb7 {[%clk 0:02:42]} 18. Nd2 {[%clk 0:02:21]}  Ra8 {[%clk 0:02:27]} 19. Qc2 {[%clk 0:02:17]}  h5 {[%clk 0:02:17]} 20. Ra3 {[%clk 0:02:12]}  h4 {[%clk 0:02:14]} 21. Rfa1 {[%clk 0:02:11]}  d4 {[%clk 0:02:13]} 22. Bxc6 {[%clk 0:02:07]}  Qxc6 {[%clk 0:02:13]} 23. Qd1 {[%clk 0:01:54]}  Ne5 {[%clk 0:01:42]} 24. Qf1 {[%clk 0:01:53]}  Qb7 {[%clk 0:01:30]} 25. Qg2 {[%clk 0:01:33]}  Qxg2+ {[%clk 0:01:28]} 26. Kxg2 {[%clk 0:01:32]}  hxg3 {[%clk 0:01:28]} 27. hxg3 {[%clk 0:01:33]}  Nc6 {[%clk 0:01:28]} 28. Nb3 {[%clk 0:01:27]}  Bd8 {[%clk 0:01:28]} 29. Bc1 {[%clk 0:01:25]}  Nd7 {[%clk 0:01:27]} 30. Bd2 {[%clk 0:01:23]}  Ra6 {[%clk 0:01:15]} 31. a5 {[%clk 0:01:15]}  bxa5 {[%clk 0:01:15]} 32. Bxa5 {[%clk 0:01:15]}  Bxa5 {[%clk 0:01:12]} 33. Nxa5 {[%clk 0:01:16]}  Nb4 {[%clk 0:01:08]} 34. Nb3 {[%clk 0:01:08]}  Rfa8 {[%clk 0:01:07]} 35. Rxa6 {[%clk 0:00:54]}  Rxa6 {[%clk 0:01:06]} 36. Rxa6 {[%clk 0:00:44]}  Nxa6 {[%clk 0:01:06]} 37. Kf3 {[%clk 0:00:36]}  f5 {[%clk 0:01:06]} 38. Nd6 {[%clk 0:00:34]}  Kf8 {[%clk 0:01:04]} 39. Nb7 {[%clk 0:00:28]}  Ke7 {[%clk 0:01:02]} 40. Kg2 {[%clk 0:00:27]}  g5 {[%clk 0:01:02]} 41. Kh3 {[%clk 0:00:27]}  Kf6 {[%clk 0:00:59]} 42. g4 {[%clk 0:00:26]}  Ke5 {[%clk 0:00:58]} 43. gxf5 {[%clk 0:00:25]}  exf5 {[%clk 0:00:57]} 44. N3a5 {[%clk 0:00:23]}  Nb4 {[%clk 0:00:56]} 45. Nb3 {[%clk 0:00:23]}  Na6 {[%clk 0:00:55]} 46. Kg3 {[%clk 0:00:23]}  Kf6 {[%clk 0:00:53]} 47. Nd6 {[%clk 0:00:22]}  Ke5 {[%clk 0:00:52]} 48. Nb7 {[%clk 0:00:21]}  Kf6 {[%clk 0:00:52]} 49. Kf3 {[%clk 0:00:21]}  Ke5 {[%clk 0:00:51]} 50. Kg3 {[%clk 0:00:21]} 1/2-1/2


[Site "https://www.chess.com"]

[Event "Titled Tuesday Blitz August 08 Late 2023"]
[White "Krishnan, Varun"]
[Black "Rustemov, Alexander"]
[WhiteFideId "5054508"]
[BlackFideId "4119002"]
[WhiteElo "2582"]
[BlackElo "2839"]
[Result "0-1"]
[Round "9"]
[TimeControl "180+1"]
[Date "2023.08.08"]
[WhiteClock "0:00:03"]
[BlackClock "0:00:23"]
[Board "27"]

1. e4 {[%clk 0:02:59]}  e6 {[%clk 0:02:58]} 2. d4 {[%clk 0:02:59]}  d5 {[%clk 0:02:59]} 3. Nc3 {[%clk 0:02:55]}  dxe4 {[%clk 0:02:57]} 4. Nxe4 {[%clk 0:02:55]}  Bd7 {[%clk 0:02:58]} 5. Nf3 {[%clk 0:02:55]}  Bc6 {[%clk 0:02:58]} 6. Bd3 {[%clk 0:02:55]}  Nd7 {[%clk 0:02:58]} 7. Qe2 {[%clk 0:02:54]}  Ngf6 {[%clk 0:02:58]} 8. O-O {[%clk 0:02:47]}  Be7 {[%clk 0:02:56]} 9. Bf4 {[%clk 0:02:41]}  Nxe4 {[%clk 0:02:54]} 10. Bxe4 {[%clk 0:02:40]}  Bxe4 {[%clk 0:02:54]} 11. Qxe4 {[%clk 0:02:40]}  c6 {[%clk 0:02:55]} 12. Rad1 {[%clk 0:02:33]}  O-O {[%clk 0:02:55]} 13. Ne5 {[%clk 0:02:32]}  Re8 {[%clk 0:02:51]} 14. Rfe1 {[%clk 0:02:29]}  Nf6 {[%clk 0:02:49]} 15. Qe2 {[%clk 0:02:27]}  Qa5 {[%clk 0:02:47]} 16. a3 {[%clk 0:02:24]}  Rad8 {[%clk 0:02:45]} 17. Qf3 {[%clk 0:02:18]}  Qd5 {[%clk 0:02:42]} 18. Qh3 {[%clk 0:02:15]}  b5 {[%clk 0:02:34]} 19. Rd3 {[%clk 0:02:04]}  g6 {[%clk 0:02:29]} 20. Bg5 {[%clk 0:01:59]}  Nd7 {[%clk 0:02:16]} 21. Nxd7 {[%clk 0:01:40]}  Rxd7 {[%clk 0:02:14]} 22. Bxe7 {[%clk 0:01:35]}  Rexe7 {[%clk 0:02:14]} 23. b3 {[%clk 0:01:35]}  Qd6 {[%clk 0:02:04]} 24. Ra1 {[%clk 0:01:24]}  e5 {[%clk 0:02:00]} 25. Rad1 {[%clk 0:00:55]}  e4 {[%clk 0:01:59]} 26. Re3 {[%clk 0:00:52]}  f5 {[%clk 0:01:54]} 27. b4 {[%clk 0:00:52]}  Qd5 {[%clk 0:01:43]} 28. Rc3 {[%clk 0:00:50]}  f4 {[%clk 0:01:30]} 29. Qg4 {[%clk 0:00:44]}  Rf7 {[%clk 0:01:18]} 30. Rc5 {[%clk 0:00:43]}  Qd6 {[%clk 0:01:16]} 31. d5 {[%clk 0:00:42]}  cxd5 {[%clk 0:01:12]} 32. Rcxd5 {[%clk 0:00:38]}  Qxd5 {[%clk 0:01:10]} 33. Rxd5 {[%clk 0:00:39]}  Rxd5 {[%clk 0:01:10]} 34. Kf1 {[%clk 0:00:25]}  Rff5 {[%clk 0:01:10]} 35. Qe2 {[%clk 0:00:23]}  Rfe5 {[%clk 0:01:09]} 36. Qg4 {[%clk 0:00:22]}  g5 {[%clk 0:01:07]} 37. Qc8+ {[%clk 0:00:21]}  Kg7 {[%clk 0:01:07]} 38. Qc7+ {[%clk 0:00:21]}  Kg6 {[%clk 0:01:07]} 39. Qc6+ {[%clk 0:00:21]}  Kf7 {[%clk 0:01:03]} 40. Qc7+ {[%clk 0:00:22]}  Re7 {[%clk 0:00:58]} 41. Qc6 {[%clk 0:00:22]}  Rde5 {[%clk 0:00:52]} 42. Qh6 {[%clk 0:00:22]}  e3 {[%clk 0:00:50]} 43. fxe3 {[%clk 0:00:20]}  fxe3 {[%clk 0:00:50]} 44. Ke2 {[%clk 0:00:20]}  Kg8 {[%clk 0:00:44]} 45. Qd6 {[%clk 0:00:19]}  Kg7 {[%clk 0:00:44]} 46. Qd4 {[%clk 0:00:18]}  Kg6 {[%clk 0:00:43]} 47. Qd6+ {[%clk 0:00:18]}  R5e6 {[%clk 0:00:43]} 48. Qd3+ {[%clk 0:00:18]}  Kh6 {[%clk 0:00:41]} 49. Qd4 {[%clk 0:00:18]}  Rf7 {[%clk 0:00:39]} 50. Qg4 {[%clk 0:00:17]}  Rf2+ {[%clk 0:00:31]} 51. Kd3 {[%clk 0:00:15]}  Rd2+ {[%clk 0:00:30]} 52. Kc3 {[%clk 0:00:14]}  Rdd6 {[%clk 0:00:30]} 53. Qe2 {[%clk 0:00:13]}  Kg7 {[%clk 0:00:28]} 54. Qxb5 {[%clk 0:00:10]}  e2 {[%clk 0:00:27]} 55. Qxg5+ {[%clk 0:00:10]}  Kf7 {[%clk 0:00:26]} 56. Qf5+ {[%clk 0:00:10]}  Ke8 {[%clk 0:00:26]} 57. Qxh7 {[%clk 0:00:09]}  e1=Q+ {[%clk 0:00:25]} 58. Kb2 {[%clk 0:00:06]}  Qe5+ {[%clk 0:00:23]} 59. Ka2 {[%clk 0:00:05]}  Qd5+ {[%clk 0:00:23]} 60. Kb2 {[%clk 0:00:06]}  Qd4+ {[%clk 0:00:23]} 61. Ka2 {[%clk 0:00:07]}  Qd5+ {[%clk 0:00:22]} 62. Kb2 {[%clk 0:00:07]}  Re7 {[%clk 0:00:23]} 63. Qh8+ {[%clk 0:00:07]}  Kd7 {[%clk 0:00:23]} 64. Qh3+ {[%clk 0:00:06]}  Kc7 {[%clk 0:00:23]} 65. Qc3+ {[%clk 0:00:06]}  Rc6 {[%clk 0:00:22]} 66. Qg3+ {[%clk 0:00:03]}  Kb7 {[%clk 0:00:23]} 0-1


[Site "https://www.chess.com"]